Cogmind - Beta 17 *** ADVENTURER MODE // 2026.06.27 @ 23:06:28 Player: Iris Result: Destroyed by G-34 Mercenary with Small Laser Performance ------------- Evolutions (1) 500 Regions Visited (2) 400 Robots Destroyed (11) 55 Value Destroyed (271) 271 Prototype IDs (0) 0 Alien Tech Used (0) 0 Bonus (0) 0 TOTAL SCORE: 1226 Bonus ------- None Cogmind --------- Core Integrity 0/400 Matter 159/300 Energy 98/100 System Corruption 0% Temperature Cool (7) Movement Treading (320) Ox2 Location -9/Materials Parts ------- > --- POWER (2) -------- (None) > --- PROPULSION (2) --- Light Treads > --- UTILITY (2) ------ Large Storage Unit Large Storage Unit > --- WEAPON (3) ------- Spread Laser > --- INVENTORY (15) --- (None) Peak State ------------ > --- POWER ------------ Light Ion Engine > --- PROPULSION ------- Wheel Wheel > --- UTILITY ---------- Backup Plating I Backup Plating I > --- WEAPON ----------- Medium Laser Assault Rifle > --- INVENTORY -------- Aluminum Leg Aluminum Leg EM Pulse Gun Grenade Launcher [Rating: 7] Favorites ----------- Power Light Ion Engine Engine Light Ion Engine Propulsion Wheel Treads Light Treads Leg Aluminum Leg Wheel Wheel Hover Unit Hover Unit Utility Backup Plating I Storage Large Storage Unit Protection Backup Plating I Weapon Assault Rifle Energy Gun Medium Laser Ballistic Gun Assault Rifle Launcher Grenade Launcher Special Weapon Mining Laser Build | -11 -10 -9 ------- Run | Yrd Mat Mat Slots Evolved 2 | . . 2 Power 1 | . . 1 Propulsion . | . . . Utility . | . . . Weapon 1 | . . 1 Parts Attached 15 | 5 2 8 Power 1 | 1 . . Engine 1 | 1 . . Core . | . . . Reactor . | . . . Propulsion 5 | 2 1 2 Treads 1 | . . 1 Leg 1 | . . 1 Wheel 2 | 2 . . Hover 1 | . 1 . Flight . | . . . Utility 2 | . . 2 Device . | . . . Storage 2 | . . 2 Processor . | . . . Hackware . | . . . Protection . | . . . Artifact . | . . . Weapon 7 | 2 1 4 Energy Gun 4 | 1 . 3 Energy Cannon . | . . . Ballistic Gun 1 | 1 . . Ballistic Cannon . | . . . Launcher 1 | . 1 . Special Weapon 1 | . . 1 Impact Weapon . | . . . Slashing Weapon . | . . . Piercing Weapon . | . . . Special Melee Weapon . | . . . Unidentified Prototypes . | . . . Parts Lost 13 | . 1 12 Power 1 | . . 1 Propulsion 4 | . 1 3 Utility 2 | . . 2 Weapon 6 | . . 6 Highest Loss Streak 4 | . 1 4 To Critical Strikes . | . . . Average Backups 3 | 3 4 2 Power . | . . . Propulsion 1 | 2 2 1 Utility . | . . . Weapon 1 | . 2 1 Tool/Special . | . . . Unused Backups 1 | . 1 . Power . | . . . Propulsion 1 | . 1 . Utility . | . . . Weapon . | . . . Tool/Special . | . . . Average Slot Usage (%) 62 | . 92 38 Engine 8 | . 14 3 Wheel 12 | . 19 6 Hover 1 | . 4 . Protection 15 | . 25 8 Energy Gun 9 | . 9 9 Ballistic Gun 8 | . 14 3 Launcher 3 | . 4 3 Peak Build Rating 7 | 5 7 7 Average Rating 4 | 2 6 3 On Entrance 3 | . 5 6 Avg Prop Armor Cover (%) 4 | . 4 4 Naked Turns 43 | . . 43 Heaviest Build 46 | 7 10 46 Greatest Support 20 | 20 20 20 Greatest Overweight (x) 3 | 1 3 3 Average Overweight (x) . | . . . Largest Inventory Capacity 15 | 5 5 15 Average Capacity 5 | 5 5 5 Most Carried 5 | 5 5 5 Average Carried 3 | 3 4 2 Final Capacity 15 | 5 5 15 Final Carried 5 | 3 5 . Class Distribution -------------------- 94% | Mutant 5% | Tank Dominant Class ---------------- Mutant | -10/Materials Mutant | -9/Materials Resources | -11 -10 -9 ----------- Run | Yrd Mat Mat Matter Collected 337 | 265 9 63 Remotely . | . . . Salvage Created 248 | 31 116 101 Parts 20 | 4 7 9 Haulers Intercepted . | . . . Recyclers Shooed 1 | . . 1 Parts Field Recycled . | . . . Retrieved Matter . | . . . Parts Self-Destructed . | . . . Prevented . | . . . Parts Restored . | . . . Kills | -11 -10 -9 ------- Run | Yrd Mat Mat Combat Hostiles Destroyed 6 | 1 3 2 Guns 2 | 1 . 1 AOE 4 | . 3 1 Classes Destroyed 6 | 1 2 3 Worker 1 | . 1 . Builder 1 | . . 1 Tunneler 1 | . . 1 Watcher 2 | . 1 1 Grunt 4 | 1 3 . Sentry 2 | . . 2 Best Kill Streak 4 | 1 3 4 Combat Bots Only 3 | 1 3 1 Max Kills in Single Turn 2 | 1 2 2 Gunslinging . | . . . Exploded 2 | . 2 1 Melee . | . . . Uniques/NPCs Destroyed . | . . . Combat | -11 -10 -9 -------- Run | Yrd Mat Mat Hostile Shots Fired 202 | 8 28 166 Missed 66 | 4 8 54 Hits 136 | 4 20 112 Projectile 136 | 4 20 112 Critical Strikes 1 | . . 1 Damage Taken 1371 | 33 166 1172 Core 431 | 8 16 407 Absorbed by Shields . | . . . Ignored by Resistances 422 | 10 54 358 Core Remaining (%) 93 | 96 90 . Volleys Fired 36 | 5 13 18 Largest 2 | 2 2 2 Hottest 130 | 70 70 130 Shots Fired 68 | 10 26 32 Gun 57 | 10 21 26 Cannon . | . . . Launcher 11 | . 5 6 Special . | . . . Kinetic 22 | 5 13 4 Thermal 26 | 5 8 13 Explosive 11 | . 5 6 Electromagnetic 9 | . . 9 Robot Hit Streak 23 | 7 11 23 Robot Miss Streak 2 | 1 2 2 Penetration Max . | . . . Secondary Targets . | . . . Shots Hit Robots 58 | 9 20 29 Core Hits 25 | 2 9 14 Critical Kills . | . . . Critical Parts Destroyed . | . . . Critical Strikes 2 | . 1 1 Burn 2 | . 1 1 Melee Attacks . | . . . Impact . | . . . Slashing . | . . . Piercing . | . . . Sneak Attacks . | . . . Combat Hostiles . | . . . Follow-up Attacks . | . . . Damage Inflicted 988 | 115 406 467 Guns 612 | 115 203 294 Cannons . | . . . Explosions 376 | . 203 173 Melee . | . . . Ramming . | . . . Kinetic 245 | 64 128 53 Thermal 291 | 51 75 165 Explosive 376 | . 203 173 Electromagnetic 76 | . . 76 Impact . | . . . Slashing . | . . . Piercing . | . . . Highest Corruption . | . . . Average Corruption . | . . . Corruption Purged . | . . . Corruption Blocked . | . . . Overload Shots . | . . . Overflow Damage 16 | . . 16 Projectiles . | . . . Explosions 16 | . . 16 Melee . | . . . Knockbacks . | . . . Impact . | . . . Kinetic . | . . . Secondary . | . . . Self-Inflicted Damage 77 | . . 77 Shots 5 | . . 5 Rammed . | . . . Targets Rammed 1 | . . 1 Kicked 1 | . . 1 Crushed . | . . . Highest Temperature 171 | 63 171 90 Average Temperature 55 | 30 89 27 Received Heat Transfer 819 | 24 120 675 Siege Activations . | . . . Martial Activations . | . . . Shielding Activations . | . . . Robots Disrupted . | . . . Combat Hostiles . | . . . Robots Corrupted . | . . . Combat Hostiles . | . . . Parts Fried . | . . . Impact Corruptions . | . . . Robots Melted . | . . . Combat Hostiles . | . . . Parts Melted . | . . . Heat Transferred 965 | 148 296 521 Parts Sabotaged . | . . . Parts Stolen . | . . . Parts Stripped . | . . . Power Chain Reactions . | . . . Alert | -11 -10 -9 ------- Run | Yrd Mat Mat Maximum Alert Level . | . . . Low Security (%) 100 | 100 100 100 Level 1 . | . . . Level 2 . | . . . Level 3 . | . . . Level 4 . | . . . Level 5 . | . . . High Security . | . . . Max Security . | . . . Peak Influence 140 | 20 67 140 Initial 13 | . 11 13 Average 32 | 1 17 52 Influence Increases 445 | 20 89 336 Destroy 0b10 Robot/C 120 | 20 60 40 Destroy 0b10 Robot/NC 25 | . 10 15 Destroy Leader 34 | . 12 22 Successful Hack 18 | . . 18 Destroy Structure 23 | . 7 16 Lose Combat Pursuer 225 | . . 225 Influence Decreases 325 | . 72 253 Entered New Map 33 | . 9 24 Time Decay 196 | . 63 133 Lost Part 96 | . . 96 Squads Dispatched 4 | . 1 3 Investigation 2 | . 1 1 Extermination . | . . . Reinforcement 2 | . . 2 Assault . | . . . Garrison . | . . . Intercept . | . . . Searches Triggered . | . . . Construction Impeded . | . . . Haulers Reinforced . | . . . Active Scanning Responses . | . . . Cargo Convoy Interrupts . | . . . Stealth | -11 -10 -9 --------- Run | Yrd Mat Mat Distress Signals 1 | . . 1 Communications Jammed . | . . . Distress Signals . | . . . Times Spotted 35 | 1 4 30 Peak Tracking Total 7 | 1 3 7 Tactical Retreats 6 | . . 6 Traps | -11 -10 -9 ------- Run | Yrd Mat Mat Traps Triggered 1 | . 1 . Indirectly . | . . . Trap Hack Attempts . | . . . Triggered . | . . . Disarmed . | . . . Reprogrammed . | . . . Reused . | . . . Traps Extracted . | . . . Installed . | . . . Triggered . | . . . Machines | -11 -10 -9 ---------- Run | Yrd Mat Mat Machines Disabled . | . . . Max in Single Turn . | . . . Machines Repaired . | . . . Machines Dismantled . | . . . Machines Sabotaged . | . . . Overloaded Fab Kills . | . . . Hacking | -11 -10 -9 --------- Run | Yrd Mat Mat Machines Accessed 2 | . 1 1 Terminals 1 | . . 1 Fabricators . | . . . Repair Stations 1 | . 1 . Recycling Units . | . . . Scanalyzers . | . . . Garrison Access . | . . . Total Hacks 4 | . 1 3 Successful 3 | . 1 2 Failed 1 | . . 1 Catastrophic . | . . . Database Lockouts . | . . . Manual . | . . . Terminals 3 | . . 3 Fabricators . | . . . Repair Stations 1 | . 1 . Recycling Units . | . . . Scanalyzers . | . . . Garrison Access . | . . . Terminal Hacks 2 | . . 2 Record 2 | . . 2 Fabricator Hacks . | . . . Repair Station Hacks 1 | . 1 . Refit 1 | . 1 . Recycling Unit Hacks . | . . . Scanalyzer . | . . . Garrison Access Hacks . | . . . Unauthorized Hacks . | . . . Terminals . | . . . Fabricators . | . . . Repair Stations . | . . . Recycling Units . | . . . Scanalyzers . | . . . Garrison Access . | . . . Data Cores Recovered . | . . . Used . | . . . Hacking Detections 1 | . . 1 Full Trace Events 1 | . . 1 Feedback Events . | . . . Feedback Blocked . | . . . Robot Schematics Acquired . | . . . Robots Built . | . . . Authchips . | . . . Time . | . . . Total Robot Build Rating . | . . . Part Schematics Acquired . | . . . Parts Built . | . . . Authchips . | . . . Time . | . . . Total Part Build Rating . | . . . Part Studies Acquired . | . . . Parts Repaired . | . . . Time . | . . . Parts Recycled . | . . . Recycled Matter . | . . . Retrieved Matter . | . . . Retrieved Components . | . . . Parts Scanalyzed . | . . . Part Schematics Acquired . | . . . Parts Damaged . | . . . Bothacking | -11 -10 -9 ------------ Run | Yrd Mat Mat Used RIF Installer . | . . . Robots Hacked . | . . . Non-combat . | . . . Combat . | . . . Robot Hacks Applied . | . . . Relay Couplers Released . | . . . Fabnet Peak Effective % . | . . . Robots Rewired . | . . . Allies Hacked . | . . . Hacks Repelled . | . . . Allies | -11 -10 -9 -------- Run | Yrd Mat Mat Total Allies . | . . . Largest Group . | . . . Highest-Rated Group . | . . . Highest-Rated Ally . | . . . Total Orders . | . . . Ally Attacks . | . . . Total Damage . | . . . Kills . | . . . Allies Corrupted . | . . . Allies Melted . | . . . Intel | -11 -10 -9 ------- Run | Yrd Mat Mat Active Infowar (turns) . | . . . Robot Analysis Total . | . . . Derelict Logs Recovered . | . . . Drone Launches . | . . . Drone Recoveries . | . . . Exploration | -11 -10 -9 ------------- Run | Yrd Mat Mat Turns Passed 687 | 79 273 335 Spaces Moved 533 | 80 205 248 Core 288 | 48 35 205 Treads 8 | . . 8 Legs 18 | . . 18 Wheels 168 | 32 119 17 Hover 51 | . 51 . Flight . | . . . Fastest Speed 50 | 50 80 50 Average Speed 102 | 65 111 106 Slowest Speed 320 | 100 200 320 Overloaded Moves . | . . . Propulsion Burnouts . | . . . Robots Hopped . | . . . Potential Cave-ins . | . . . Cave-ins Triggered . | . . . Exploration Rate (%) 18 | 5 35 14 Regions Visited 2 Branch Regions . Pre-discovered Areas . | . . . Known Exits Taken . | . . . Unknown Exits Taken 2 | 1 1 . Scrap Searched . | . . . Spaces Dug . | . . . Terrain Destroyed 26 | . 10 16 Melee . | . . . Projectile . | . . . AOE 26 | . 10 16 Terrain Rammed . | . . . Walls Destroyed . | . . . Machines Disabled . | . . . Actions | -11 -10 -9 --------- Run | Yrd Mat Mat Total 606 | 95 223 288 Wait 7 | . . 7 Move 531 | 79 204 248 Hop . | . . . Pick Up 13 | 6 3 4 Fast Attach 3 | 2 . 1 Attach 12 | 3 . 9 Detach . | . . . Swap 2 | . 2 . Drop 1 | . 1 . Fire 36 | 5 13 18 Melee . | . . . Ram . | . . . Kick 1 | . . 1 Crush . | . . . Escape Stasis . | . . . Rewire . | . . . Trap . | . . . Miscellaneous . | . . . Route ------- -11/Scrapyard -10/Materials -9/Materials History --------- Turn | Location | Event 2 | -11/Scrapyard | Met Revision 17 54 | -11/Scrapyard | Discovered new exit (range 8) 80 | -11/Scrapyard | Entered Materials 162 | -10/Materials | Discovered new exit (range 15) 308 | -10/Materials | Build established: Mutant 353 | -10/Materials | Entered another Materials area 353 | -9/Materials | Evolved 2 slots: Power x1, Weapon x1 497 | -9/Materials | Lost 4 parts (1p1u2w) 537 | -9/Materials | Lost 4 parts (2n1u1w) 620 | -9/Materials | Core integrity fell below 50% 642 | -9/Materials | Core integrity fell below 20% 646 | -9/Materials | Lost 3 parts (1n2w) 688 | -9/Materials | Destroyed by G-34 Mercenary with Small Laser Last Messages --------------- 00592_ Critical hit (Burn: +37). 00592_ Y-45 Defender destroyed. 00595_ Med. Laser destroyed. 00605_ G-34 Mercenary destroyed. 00607_ Kicked G-34 Mercenary. 00609_ G-34 Mercenary destroyed. 00612_ Acquired 48 matter. 00615_ Aluminum Leg destroyed. 00620_ R-06 Scavenger collects Beam Rifle. 00634_ U-05 Engineer lays Concrete. 00635_ Acquired 13 matter. 00650_ O-16 Technician: "IFF HANDSHAKE FAILED. SECURING TERMINAL." 00651_ Acquired Spread Laser. 00654_ Acquired Lgt. Treads. 00657_ Acquired Lrg. Storage Unit. 00663_ ALERT: Hostiles spotted, dispatching reinforcements to Terminal M010. 00667_ Acquired Lrg. Storage Unit. 00672_ G-34 Mercenary destroyed. 00684_ Spread Laser destroyed. Map ----- +----------------------------------------------------+ | ??????????????# ??????????# #????????????? | | ??????????????? ???????????# #????????????? | | ????????????????? ###???????## ##???????????? | | ??? ####### ############ #???????????? | | ??? "" #???????????? | | ??????????######## % T #???????????? | | ????????????????## #???????????? | | ????????????????## #####+##### #???????????? | | ????????????????## ## # ###???????????? | | ????????????????## ## """" # #?????????????? | | ????????????????## ## ""S"" # #?????????????? | | ?????????????????# ## "" "" # #?????????????? | | ?????????????????# # # #?????????????? | | ?????????????????# ## ??# #?????????????? | | ?????????????????# ## ]]= ??# #???#?????????? | | ?????????????????# ## ]]*????# #?? ?????????? | | ?????????????????# ## ]??????# #? ?????????? | | ?????????????????# ###########* # ""??????????? | | ?????????????????# ! gg # "???????????? | | ?????????????????# = + ""??????????? | | ?????????????????# # ????????? | | ?????????????????########Y #?????????????? | | ????????????????????????# #?????????????? | | ????????????????????????# r [ #?????????????? | | ?????????????????######## #?????????????? | | ?????????? w r@ =[[ #?????????????? | | ?????????? a g o ???????? | | ?????????? ##### #???? | | ???????????###############+#########?????????????? | | ????????????????????????? ?????????????????????? | | ????????????????????????? ?????????????????????? | | ???????????????????????? ?????????????????????? | | ?????????????????????????| ?????????????????????? | | ????????????????????????? ?????????????????????? | | ?????????????????????????????????????????????????? | | ?????????????????????????????????????????????????? | | ?????????????????????????????????????????????????? | | ?????????????????????????????????????????????????? | | ?????????????????????????????????????????????????? | | ?????????????????????????????????????????????????? | | ?????????????????????????????????????????????????? | | ?????????????????????????????????????????????????? | | ?????????????????????????????????????????????????? | | ?????????????????????????????????????????????????? | | ?????????????????????????????????????????????????? | | ?????????????????????????????????????????????????? | | ?????????????????????????????????????????????????? | | ?????????????????????????????????????????????????? | | ?????????????????????????????????????????????????? | | ?????????????????????????????????????????????????? | +----------------------------------------------------+ Best States ------------- Heat Dissipation 28 Energy Generation 10 Energy Capacity 125 Matter Stores 300 Matter Capacity 300 Sight Range 16 Terrain Scan Density 10 Armor Coverage 160 Resistance: KI 20 Resistance: TH 20 Resistance: EX 20 Resistance: EM 20 Resistance: I 20 Resistance: S 20 Resistance: P 20 Evasion (%) 55 Recoil Reduction 1 Offensive Hacking 10 Item Schematics ----------------- None Robot Schematics ------------------ None Fabricated ------------ Nothing Repaired ---------- Nothing Studied --------- None Alien Tech Used ----------------- None Achievements -------------- Fitting Room Resistances Are Futile Challenges ------------ None Game ------ Seed OvertunedHardlightSpecial Manual? 0 Play Time 00:11:27 Cumulative 28.6 hours Start 2026.06.27 @ 22:53:37 End 2026.06.27 @ 23:06:28 Sessions 1 Manual Loads 0 Difficulty Adventurer Special Mode None Game No. 66 Rogue 40 Adventurer 26 Explorer 0 Win Type - Total 0 Types 0/0/0/0/0/0/0/0/0/0 Lore% 13 Gallery% 27 Achievement% 17 Wizard Run 0 Options --------- Layout 1 ASCII 0 Keyboard 0 Movement Mouse Keybinds 0 Fullscreen 0 Font 28/SmallcapsGlow Map View 77x35 Zoom Use 0% Tactical HUD 1 Map Filters NONE Filters NONE Steam X RUN: b30f9936-e9e7-4262-ae78-0b47bdaa71cc